[Event "Early-Titled-Tuesday-Blitz-March-26-2024"]
[Site "Chess.com"]
[Date "2024.03.26"]
[Round "10"]
[White "Andreikka"]
[Black "Polish_fighter3000"]
[Result "0-1"]
[WhiteElo "2994"]
[BlackElo "3123"]
[TimeControl "180+1"]
[EndTime "9:53:45 PDT"]
[Termination "Polish_fighter3000 won on time"]

1. e4 {[%clk 0:02:59.6]} 1... e6 {[%clk 0:03:00]} 2. d4 {[%clk 0:02:59.1]} 2...
d5 {[%clk 0:03:00.7]} 3. e5 {[%clk 0:02:59.6]} 3... c5 {[%clk 0:03:00.6]} 4. c3
{[%clk 0:03:00.2]} 4... Bd7 {[%clk 0:03:00.8]} 5. Nf3 {[%clk 0:02:59]} 5... a6
{[%clk 0:03:00.8]} 6. Be2 {[%clk 0:02:52.9]} 6... cxd4 {[%clk 0:02:57.6]} 7.
cxd4 {[%clk 0:02:52.4]} 7... Bb5 {[%clk 0:02:56.4]} 8. O-O {[%clk 0:02:52.5]}
8... Bxe2 {[%clk 0:02:55.2]} 9. Qxe2 {[%clk 0:02:53.4]} 9... Nc6 {[%clk
0:02:55.6]} 10. Nc3 {[%clk 0:02:52.2]} 10... Nge7 {[%clk 0:02:52.7]} 11. a3
{[%clk 0:02:47.8]} 11... Nf5 {[%clk 0:02:50.3]} 12. Qd3 {[%clk 0:02:45.8]} 12...
h5 {[%clk 0:02:34.2]} 13. Be3 {[%clk 0:02:36.9]} 13... Be7 {[%clk 0:02:33.1]}
14. Ne2 {[%clk 0:02:31.6]} 14... h4 {[%clk 0:02:24.5]} 15. h3 {[%clk 0:02:23.2]}
15... Qb6 {[%clk 0:02:10.2]} 16. b4 {[%clk 0:02:22.9]} 16... Qb5 {[%clk
0:02:07]} 17. Qxb5 {[%clk 0:02:14.9]} 17... axb5 {[%clk 0:02:07.9]} 18. Nc3
{[%clk 0:02:13.1]} 18... Na7 {[%clk 0:02:06.7]} 19. Bd2 {[%clk 0:01:35]} 19...
Kd7 {[%clk 0:02:02.2]} 20. Rfd1 {[%clk 0:01:32]} 20... Rhc8 {[%clk 0:01:53.2]}
21. Be1 {[%clk 0:01:31]} 21... Rc4 {[%clk 0:01:48.7]} 22. Rab1 {[%clk
0:01:28.2]} 22... Nc8 {[%clk 0:01:34.4]} 23. Rb3 {[%clk 0:00:59.7]} 23... Kc6
{[%clk 0:01:29.2]} 24. g4 {[%clk 0:00:57.4]} 24... hxg3 {[%clk 0:01:24.1]} 25.
fxg3 {[%clk 0:00:58.3]} 25... Nb6 {[%clk 0:00:45.5]} 26. Rd3 {[%clk 0:00:50.6]}
26... Rh8 {[%clk 0:00:38.8]} 27. Kg2 {[%clk 0:00:50]} 27... Na4 {[%clk
0:00:36.6]} 28. g4 {[%clk 0:00:47.1]} 28... Nxc3 {[%clk 0:00:32.6]} 29. Rbxc3
{[%clk 0:00:43.5]} 29... Nh6 {[%clk 0:00:23.9]} 30. Nd2 {[%clk 0:00:42.2]} 30...
Rxc3 {[%clk 0:00:21]} 31. Rxc3+ {[%clk 0:00:43.1]} 31... Kd7 {[%clk 0:00:21.5]}
32. Nf3 {[%clk 0:00:38.5]} 32... Ng8 {[%clk 0:00:18.5]} 33. h4 {[%clk
0:00:36.4]} 33... Bd8 {[%clk 0:00:15.2]} 34. h5 {[%clk 0:00:35.7]} 34... g6
{[%clk 0:00:12.4]} 35. hxg6 {[%clk 0:00:29.6]} 35... fxg6 {[%clk 0:00:13.3]} 36.
Rc5 {[%clk 0:00:26.5]} 36... Ne7 {[%clk 0:00:11.4]} 37. Bh4 {[%clk 0:00:14.8]}
37... b6 {[%clk 0:00:04.5]} 38. Rxb5 {[%clk 0:00:06.8]} 38... Kc6 {[%clk
0:00:04.4]} 39. a4 {[%clk 0:00:06]} 39... Nc8 {[%clk 0:00:05]} 40. Bf6 {[%clk
0:00:02.9]} 40... Rf8 {[%clk 0:00:03.8]} 41. Ng5 {[%clk 0:00:02.8]} 41... Bxf6
{[%clk 0:00:03.4]} 42. Nh7 {[%clk 0:00:01.8]} 42... Be7 {[%clk 0:00:03.2]} 43.
Nxf8 {[%clk 0:00:01.2]} 43... Bxf8 {[%clk 0:00:04.1]} 44. Kg3 {[%clk 0:00:01.5]}
44... Na7 {[%clk 0:00:04.3]} 0-1

[Event "Early-Titled-Tuesday-Blitz-March-26-2024"]
[Site "Chess.com"]
[Date "2024.03.26"]
[Round "10"]
[White "iAspet"]
[Black "profedechess93"]
[Result "0-1"]
[WhiteElo "2478"]
[BlackElo "2644"]
[TimeControl "180+1"]
[EndTime "9:53:47 PDT"]
[Termination "profedechess93 won by resignation"]

1. Nf3 {[%clk 0:02:53]} 1... d5 {[%clk 0:02:52.6]} 2. g3 {[%clk 0:02:51.4]} 2...
Nf6 {[%clk 0:02:52.7]} 3. Bg2 {[%clk 0:02:51.3]} 3... g6 {[%clk 0:02:52.8]} 4.
O-O {[%clk 0:02:50.6]} 4... c6 {[%clk 0:02:53.3]} 5. b3 {[%clk 0:02:50.4]} 5...
Bg7 {[%clk 0:02:53.8]} 6. Bb2 {[%clk 0:02:50.8]} 6... O-O {[%clk 0:02:54.4]} 7.
c4 {[%clk 0:02:50.5]} 7... a5 {[%clk 0:02:54.6]} 8. d3 {[%clk 0:02:41.2]} 8...
Re8 {[%clk 0:02:53.7]} 9. Nbd2 {[%clk 0:02:38.6]} 9... a4 {[%clk 0:02:53.9]} 10.
Qc2 {[%clk 0:02:36.7]} 10... a3 {[%clk 0:02:50.8]} 11. Bc3 {[%clk 0:02:34]}
11... Nbd7 {[%clk 0:02:42]} 12. Ne5 {[%clk 0:02:31.7]} 12... Qc7 {[%clk
0:02:13.4]} 13. Nxd7 {[%clk 0:02:27]} 13... Bxd7 {[%clk 0:02:11.3]} 14. e4
{[%clk 0:02:06.5]} 14... dxe4 {[%clk 0:02:02.7]} 15. dxe4 {[%clk 0:01:57.7]}
15... Be6 {[%clk 0:01:36.3]} 16. h3 {[%clk 0:01:45.5]} 16... Rad8 {[%clk
0:01:34.9]} 17. Rad1 {[%clk 0:01:39.6]} 17... Qd7 {[%clk 0:01:26.5]} 18. Kh2
{[%clk 0:01:30.6]} 18... Qd3 {[%clk 0:01:26]} 19. Qxd3 {[%clk 0:01:25]} 19...
Rxd3 {[%clk 0:01:26.9]} 20. Nb1 {[%clk 0:01:24.5]} 20... Red8 {[%clk 0:01:18]}
21. Rc1 {[%clk 0:01:10.1]} 21... Nd7 {[%clk 0:01:09.3]} 22. Bxg7 {[%clk
0:01:07.6]} 22... Kxg7 {[%clk 0:01:09.2]} 23. Nxa3 {[%clk 0:01:04.7]} 23... Ra8
{[%clk 0:01:07.5]} 24. Nc2 {[%clk 0:01:03.3]} 24... Rxa2 {[%clk 0:01:07.9]} 25.
Nb4 {[%clk 0:01:03.1]} 25... Rdd2 {[%clk 0:01:08.5]} 26. Nxa2 {[%clk 0:01:03.4]}
26... Rxa2 {[%clk 0:01:09.4]} 27. Ra1 {[%clk 0:01:00.5]} 27... Rb2 {[%clk
0:01:06.6]} 28. Rab1 {[%clk 0:00:52.5]} 28... Ra2 {[%clk 0:01:05.6]} 29. f4
{[%clk 0:00:46.6]} 29... f5 {[%clk 0:00:54.1]} 30. e5 {[%clk 0:00:39.7]} 30...
Nc5 {[%clk 0:00:54.2]} 31. Kg1 {[%clk 0:00:39.8]} 31... Ne4 {[%clk 0:00:47.2]}
32. Bxe4 {[%clk 0:00:33.6]} 32... fxe4 {[%clk 0:00:48.1]} 33. Rf2 {[%clk
0:00:34.2]} 33... Ra3 {[%clk 0:00:45.6]} 34. g4 {[%clk 0:00:32.4]} 34... b5
{[%clk 0:00:46.1]} 35. f5 {[%clk 0:00:30.4]} 35... Bf7 {[%clk 0:00:45.5]} 36. e6
{[%clk 0:00:24.5]} 36... Be8 {[%clk 0:00:44.3]} 37. c5 {[%clk 0:00:24.7]} 37...
gxf5 {[%clk 0:00:41.6]} 38. Rxf5 {[%clk 0:00:20.4]} 38... Bg6 {[%clk 0:00:40.8]}
39. Rf4 {[%clk 0:00:18.6]} 39... e3 {[%clk 0:00:38.9]} 40. Rf3 {[%clk
0:00:15.7]} 40... Bxb1 {[%clk 0:00:38.2]} 41. Rxe3 {[%clk 0:00:15.4]} 41... Bc2
{[%clk 0:00:33.5]} 42. Rf3 {[%clk 0:00:14.2]} 42... Bg6 {[%clk 0:00:31.6]} 43.
Kf2 {[%clk 0:00:13.3]} 43... Ra2+ {[%clk 0:00:30.8]} 44. Kg3 {[%clk 0:00:13.3]}
44... Re2 {[%clk 0:00:30.4]} 45. h4 {[%clk 0:00:10.4]} 45... Rxe6 {[%clk
0:00:30.4]} 46. h5 {[%clk 0:00:11]} 46... Bf7 {[%clk 0:00:28.5]} 47. Kh4 {[%clk
0:00:10]} 47... h6 {[%clk 0:00:23.5]} 48. Rf5 {[%clk 0:00:07.1]} 48... Re4
{[%clk 0:00:22.6]} 49. Kg3 {[%clk 0:00:05.5]} 49... Bxb3 {[%clk 0:00:18.2]} 50.
Rf3 {[%clk 0:00:05]} 50... Be6 {[%clk 0:00:17.2]} 51. Rd3 {[%clk 0:00:04.1]}
51... Rxg4+ {[%clk 0:00:17]} 52. Kf3 {[%clk 0:00:04.4]} 52... Rh4 {[%clk
0:00:15.8]} 53. Re3 {[%clk 0:00:05.1]} 53... Rh3+ {[%clk 0:00:15.9]} 54. Ke4
{[%clk 0:00:05]} 54... Rxe3+ {[%clk 0:00:16.8]} 55. Kxe3 {[%clk 0:00:05.9]}
55... Kf6 {[%clk 0:00:17.5]} 0-1

[Event "Early-Titled-Tuesday-Blitz-March-26-2024"]
[Site "Chess.com"]
[Date "2024.03.26"]
[Round "10"]
[White "Anton_Demchenko"]
[Black "GMG"]
[Result "0-1"]
[WhiteElo "2975"]
[BlackElo "2799"]
[TimeControl "180+1"]
[EndTime "9:53:50 PDT"]
[Termination "GMG won on time"]

1. e4 {[%clk 0:02:56.1]} 1... c6 {[%clk 0:03:00.3]} 2. d4 {[%clk 0:02:55.8]}
2... d5 {[%clk 0:03:01]} 3. e5 {[%clk 0:02:56.6]} 3... Bf5 {[%clk 0:03:01.1]} 4.
Bd3 {[%clk 0:02:56.3]} 4... Bxd3 {[%clk 0:02:58.9]} 5. Qxd3 {[%clk 0:02:57.2]}
5... e6 {[%clk 0:02:57.5]} 6. c3 {[%clk 0:02:58.1]} 6... c5 {[%clk 0:02:50.6]}
7. Ne2 {[%clk 0:02:59]} 7... Qb6 {[%clk 0:02:46]} 8. O-O {[%clk 0:02:59.1]} 8...
Nc6 {[%clk 0:02:45.5]} 9. a3 {[%clk 0:02:53.9]} 9... Nge7 {[%clk 0:02:22.8]} 10.
Nd2 {[%clk 0:02:51.6]} 10... cxd4 {[%clk 0:02:18.9]} 11. cxd4 {[%clk 0:02:51.3]}
11... Nf5 {[%clk 0:02:19.5]} 12. Nf3 {[%clk 0:02:51.6]} 12... Be7 {[%clk
0:01:56.6]} 13. g4 {[%clk 0:02:45.9]} 13... Nh4 {[%clk 0:01:55.7]} 14. Nxh4
{[%clk 0:02:46.5]} 14... Bxh4 {[%clk 0:01:56.5]} 15. f4 {[%clk 0:02:47.1]} 15...
Be7 {[%clk 0:01:52.4]} 16. Kg2 {[%clk 0:02:30]} 16... h5 {[%clk 0:01:44.8]} 17.
f5 {[%clk 0:02:21.6]} 17... hxg4 {[%clk 0:01:42.7]} 18. fxe6 {[%clk 0:02:19.7]}
18... fxe6 {[%clk 0:01:43.6]} 19. b4 {[%clk 0:02:06]} 19... Kd7 {[%clk
0:01:31.2]} 20. Be3 {[%clk 0:01:49.6]} 20... Rh3 {[%clk 0:01:26.3]} 21. Rf7
{[%clk 0:00:36.5]} 21... Nxe5 {[%clk 0:01:20.4]} 22. dxe5 {[%clk 0:00:36.5]}
22... Rxe3 {[%clk 0:01:13.5]} 23. Qd2 {[%clk 0:00:35.8]} 23... Rxe5 {[%clk
0:01:07.1]} 24. Nf4 {[%clk 0:00:28.9]} 24... Qe3 {[%clk 0:00:31.1]} 25. Qxe3
{[%clk 0:00:23.5]} 25... Rxe3 {[%clk 0:00:32]} 26. Ng6 {[%clk 0:00:20.6]} 26...
Re8 {[%clk 0:00:31.3]} 27. Rxg7 {[%clk 0:00:17.1]} 27... Kd6 {[%clk 0:00:30]}
28. Rd1 {[%clk 0:00:15.9]} 28... Bf6 {[%clk 0:00:22]} 29. Rxb7 {[%clk
0:00:14.1]} 29... Rg8 {[%clk 0:00:17.2]} 30. Nf4 {[%clk 0:00:14.2]} 30... Be5
{[%clk 0:00:16.8]} 31. Nd3 {[%clk 0:00:13.3]} 31... Re2+ {[%clk 0:00:16]} 32.
Kf1 {[%clk 0:00:12.6]} 32... Rxh2 {[%clk 0:00:15.4]} 33. Rxa7 {[%clk 0:00:13.2]}
33... Rf8+ {[%clk 0:00:12.7]} 34. Kg1 {[%clk 0:00:12.9]} 34... Bd4+ {[%clk
0:00:13.1]} 35. Kxh2 {[%clk 0:00:12.7]} 35... Bxa7 {[%clk 0:00:13.8]} 36. Kg3
{[%clk 0:00:10.9]} 36... e5 {[%clk 0:00:13.5]} 37. Kxg4 {[%clk 0:00:10.5]} 37...
Be3 {[%clk 0:00:10.8]} 38. Rh1 {[%clk 0:00:08.5]} 38... e4 {[%clk 0:00:09.9]}
39. Nc5 {[%clk 0:00:08.1]} 39... Bxc5 {[%clk 0:00:09.3]} 40. Rh6+ {[%clk
0:00:08.7]} 40... Ke5 {[%clk 0:00:08.7]} 41. bxc5 {[%clk 0:00:09.6]} 41... d4
{[%clk 0:00:08.9]} 42. Rh5+ {[%clk 0:00:06.4]} 42... Ke6 {[%clk 0:00:08.2]} 43.
c6 {[%clk 0:00:05.6]} 43... d3 {[%clk 0:00:07.5]} 44. c7 {[%clk 0:00:02.2]}
44... d2 {[%clk 0:00:06.9]} 45. Rh1 {[%clk 0:00:03]} 45... e3 {[%clk 0:00:06.5]}
46. c8=Q+ {[%clk 0:00:02]} 46... Rxc8 {[%clk 0:00:06.9]} 47. Kf3 {[%clk
0:00:02.9]} 47... Rc1 {[%clk 0:00:06.6]} 48. Rh6+ {[%clk 0:00:02.9]} 48... Ke7
{[%clk 0:00:05.6]} 0-1

[Event "Early-Titled-Tuesday-Blitz-March-26-2024"]
[Site "Chess.com"]
[Date "2024.03.26"]
[Round "10"]
[White "Cambek64"]
[Black "ZenBull"]
[Result "1/2-1/2"]
[WhiteElo "2478"]
[BlackElo "2312"]
[TimeControl "180+1"]
[EndTime "9:53:50 PDT"]
[Termination "Game drawn by agreement"]

1. b3 {[%clk 0:02:49.6]} 1... Nf6 {[%clk 0:02:56.4]} 2. Bb2 {[%clk 0:02:49]}
2... b6 {[%clk 0:02:55.3]} 3. Bxf6 {[%clk 0:02:48.4]} 3... exf6 {[%clk
0:02:53.6]} 4. d4 {[%clk 0:02:45.1]} 4... Bb7 {[%clk 0:02:53.7]} 5. e3 {[%clk
0:02:45.7]} 5... g6 {[%clk 0:02:51.7]} 6. Nf3 {[%clk 0:02:41.8]} 6... Bg7 {[%clk
0:02:51.4]} 7. g3 {[%clk 0:02:41.4]} 7... O-O {[%clk 0:02:48.7]} 8. Bg2 {[%clk
0:02:41.9]} 8... d5 {[%clk 0:02:46.3]} 9. O-O {[%clk 0:02:42.5]} 9... Nd7 {[%clk
0:02:45.6]} 10. Nbd2 {[%clk 0:02:37.2]} 10... Re8 {[%clk 0:02:45.2]} 11. c3
{[%clk 0:02:36.4]} 11... Qe7 {[%clk 0:02:45.4]} 12. Qc2 {[%clk 0:02:37]} 12...
Rac8 {[%clk 0:02:45.5]} 13. Qb2 {[%clk 0:02:37.2]} 13... c6 {[%clk 0:02:43.4]}
14. Rac1 {[%clk 0:02:37.6]} 14... Nf8 {[%clk 0:02:42.2]} 15. Rfd1 {[%clk
0:02:38.2]} 15... Ne6 {[%clk 0:02:42.1]} 16. c4 {[%clk 0:02:38]} 16... dxc4
{[%clk 0:02:39.3]} 17. Nxc4 {[%clk 0:02:35.7]} 17... Red8 {[%clk 0:02:34.5]} 18.
Qa3 {[%clk 0:02:28]} 18... Qxa3 {[%clk 0:02:31.9]} 19. Nxa3 {[%clk 0:02:28.6]}
19... c5 {[%clk 0:02:30.2]} 20. dxc5 {[%clk 0:02:18.1]} 20... Nxc5 {[%clk
0:02:28.6]} 21. Nb5 {[%clk 0:02:18.4]} 21... a6 {[%clk 0:02:02.9]} 22. Nd6
{[%clk 0:02:18.4]} 22... Bxf3 {[%clk 0:01:53.6]} 23. Bxf3 {[%clk 0:02:16]} 23...
Rb8 {[%clk 0:01:53.6]} 24. b4 {[%clk 0:02:09.4]} 24... Ne6 {[%clk 0:01:53.2]}
25. h4 {[%clk 0:01:57.7]} 25... Bf8 {[%clk 0:01:53]} 26. Ne4 {[%clk 0:01:53.6]}
26... f5 {[%clk 0:01:49.5]} 27. Nf6+ {[%clk 0:01:53.6]} 27... Kg7 {[%clk
0:01:49.6]} 28. Nd7 {[%clk 0:01:54.2]} 28... Rbc8 {[%clk 0:01:47.1]} 29. Nxf8
{[%clk 0:01:44.8]} 29... Kxf8 {[%clk 0:01:34.6]} 30. Rxc8 {[%clk 0:01:36.2]}
30... Rxc8 {[%clk 0:01:33.1]} 31. Rd6 {[%clk 0:01:34.3]} 31... Rb8 {[%clk
0:01:28]} 32. Rd7 {[%clk 0:01:33.5]} 32... a5 {[%clk 0:01:23]} 33. a3 {[%clk
0:01:32.7]} 33... axb4 {[%clk 0:01:22.6]} 34. axb4 {[%clk 0:01:31.7]} 34... b5
{[%clk 0:01:19.4]} 35. Bd5 {[%clk 0:01:30.7]} 35... Rb6 {[%clk 0:01:18.9]} 36.
Kg2 {[%clk 0:01:20.6]} 36... Ke8 {[%clk 0:01:12.9]} 37. Bxe6 {[%clk 0:01:16.8]}
37... Rxe6 {[%clk 0:01:11.3]} 38. Rb7 {[%clk 0:01:16.7]} 38... Re5 {[%clk
0:01:11.1]} 39. Kf3 {[%clk 0:01:16.8]} 39... h5 {[%clk 0:00:57.2]} 40. Ke2
{[%clk 0:01:15.6]} 40... Rd5 {[%clk 0:00:55.8]} 41. f3 {[%clk 0:01:10.6]} 41...
Kf8 {[%clk 0:00:51.8]} 42. e4 {[%clk 0:01:10.9]} 42... fxe4 {[%clk 0:00:51.7]}
43. fxe4 {[%clk 0:01:11]} 43... Rd4 {[%clk 0:00:50.1]} 44. Rxb5 {[%clk
0:01:11.1]} 44... Rxe4+ {[%clk 0:00:50.6]} 45. Kf3 {[%clk 0:01:11.3]} 45... Rc4
{[%clk 0:00:48.6]} 46. Rb7 {[%clk 0:01:10.1]} 46... Rc3+ {[%clk 0:00:46.9]} 47.
Kg2 {[%clk 0:01:09]} 47... Rb3 {[%clk 0:00:46.1]} 48. b5 {[%clk 0:01:06.4]}
48... Kg7 {[%clk 0:00:46.3]} 49. b6 {[%clk 0:01:06.8]} 49... Kf6 {[%clk
0:00:46.6]} 50. Rb8 {[%clk 0:01:06.8]} 50... Kf5 {[%clk 0:00:45.1]} 51. b7
{[%clk 0:01:07.3]} 51... Kg4 {[%clk 0:00:42.6]} 52. Kf2 {[%clk 0:01:07.9]} 52...
Rb2+ {[%clk 0:00:40.5]} 53. Ke3 {[%clk 0:01:08.4]} 53... Kxg3 {[%clk 0:00:39.7]}
54. Ke4 {[%clk 0:01:08.5]} 54... f5+ {[%clk 0:00:39.5]} 55. Ke5 {[%clk
0:01:05.9]} 55... f4 {[%clk 0:00:36]} 56. Rg8 {[%clk 0:01:04.7]} 56... Rxb7
{[%clk 0:00:34.4]} 57. Rxg6+ {[%clk 0:01:05]} 57... Kxh4 {[%clk 0:00:34]} 58.
Kxf4 {[%clk 0:01:03.8]} 58... Rf7+ {[%clk 0:00:33.2]} 59. Ke3 {[%clk 0:01:03.1]}
59... Kh3 {[%clk 0:00:32.9]} 60. Ke2 {[%clk 0:01:01.7]} 60... h4 {[%clk
0:00:32.6]} 61. Rg5 {[%clk 0:01:01.6]} 61... Kh2 {[%clk 0:00:32.1]} 62. Rg4
{[%clk 0:01:01.3]} 62... h3 {[%clk 0:00:32.3]} 63. Rg5 {[%clk 0:01:00.6]} 63...
Kh1 {[%clk 0:00:30.9]} 64. Rg3 {[%clk 0:01:00.3]} 64... h2 {[%clk 0:00:31.1]}
65. Rg8 {[%clk 0:01:00.2]} 65... Ra7 {[%clk 0:00:29.3]} 66. Kf2 {[%clk
0:00:58.7]} 66... Ra2+ {[%clk 0:00:26.8]} 67. Kf1 {[%clk 0:00:56.3]} 67... Ra1+
{[%clk 0:00:27.1]} 68. Kf2 {[%clk 0:00:56.8]} 68... Rg1 {[%clk 0:00:26.9]} 69.
Rf8 {[%clk 0:00:57.2]} 69... Rg2+ {[%clk 0:00:23.8]} 70. Kf1 {[%clk 0:00:55.6]}
70... Rg7 {[%clk 0:00:22]} 71. Kf2 {[%clk 0:00:54.2]} 71... Rg2+ {[%clk
0:00:18.5]} 1/2-1/2

[Event "Early-Titled-Tuesday-Blitz-March-26-2024"]
[Site "Chess.com"]
[Date "2024.03.26"]
[Round "10"]
[White "Sanan_Sjugirov"]
[Black "Kacparov"]
[Result "1/2-1/2"]
[WhiteElo "3019"]
[BlackElo "2911"]
[TimeControl "180+1"]
[EndTime "9:53:53 PDT"]
[Termination "Game drawn by repetition"]

1. d4 {[%clk 0:03:00.9]} 1... Nf6 {[%clk 0:02:59.7]} 2. c4 {[%clk 0:03:01.5]}
2... e6 {[%clk 0:03:00.2]} 3. Nf3 {[%clk 0:03:02.1]} 3... Bb4+ {[%clk
0:02:59.5]} 4. Nbd2 {[%clk 0:03:02.1]} 4... O-O {[%clk 0:02:58.6]} 5. a3 {[%clk
0:03:02.5]} 5... Bxd2+ {[%clk 0:02:58.3]} 6. Bxd2 {[%clk 0:03:00.1]} 6... b6
{[%clk 0:02:58.6]} 7. Bg5 {[%clk 0:02:59.6]} 7... h6 {[%clk 0:02:58.7]} 8. Bh4
{[%clk 0:02:59.1]} 8... Bb7 {[%clk 0:02:58.8]} 9. e3 {[%clk 0:02:58.8]} 9... d6
{[%clk 0:02:58.4]} 10. Bd3 {[%clk 0:02:55.6]} 10... Nbd7 {[%clk 0:02:58.7]} 11.
e4 {[%clk 0:02:45.8]} 11... e5 {[%clk 0:02:52.4]} 12. d5 {[%clk 0:02:38.7]}
12... g5 {[%clk 0:02:48.2]} 13. Bg3 {[%clk 0:02:38.1]} 13... Nc5 {[%clk
0:02:41.2]} 14. Qe2 {[%clk 0:02:33]} 14... Nxd3+ {[%clk 0:02:26.5]} 15. Qxd3
{[%clk 0:02:33]} 15... c6 {[%clk 0:02:21.7]} 16. dxc6 {[%clk 0:02:28.9]} 16...
Bxc6 {[%clk 0:02:21.3]} 17. Nd2 {[%clk 0:02:29.6]} 17... Qe7 {[%clk 0:02:00.7]}
18. O-O {[%clk 0:02:27.7]} 18... Nh5 {[%clk 0:01:58.3]} 19. Rfd1 {[%clk
0:02:22.6]} 19... Rad8 {[%clk 0:01:57.8]} 20. Nf1 {[%clk 0:02:17.7]} 20... Nf4
{[%clk 0:01:57.3]} 21. Bxf4 {[%clk 0:02:04]} 21... gxf4 {[%clk 0:01:58.2]} 22.
Nd2 {[%clk 0:01:55.7]} 22... Qe6 {[%clk 0:01:56.2]} 23. f3 {[%clk 0:01:48.4]}
23... Kh8 {[%clk 0:01:52.2]} 24. Nb1 {[%clk 0:01:41.1]} 24... Rg8 {[%clk
0:01:50.9]} 25. Nc3 {[%clk 0:01:41.2]} 25... Rg5 {[%clk 0:01:47]} 26. Rd2 {[%clk
0:01:31.6]} 26... Rdg8 {[%clk 0:01:46.6]} 27. Kh1 {[%clk 0:01:13.4]} 27... R5g6
{[%clk 0:01:42.6]} 28. Rad1 {[%clk 0:01:07.4]} 28... Qe7 {[%clk 0:01:35.5]} 29.
Qf1 {[%clk 0:01:04.4]} 29... h5 {[%clk 0:01:34.6]} 30. b4 {[%clk 0:00:59.3]}
30... h4 {[%clk 0:01:34.1]} 31. h3 {[%clk 0:00:57.5]} 31... Kh7 {[%clk
0:00:53.5]} 32. a4 {[%clk 0:00:40.7]} 32... R8g7 {[%clk 0:00:52.6]} 33. Nb5
{[%clk 0:00:38.2]} 33... Bxb5 {[%clk 0:00:48.9]} 34. axb5 {[%clk 0:00:39.1]}
34... Qg5 {[%clk 0:00:41.3]} 35. Rf2 {[%clk 0:00:24.4]} 35... f5 {[%clk
0:00:40.7]} 36. exf5 {[%clk 0:00:20.8]} 36... Qxf5 {[%clk 0:00:41.6]} 37. Rdd2
{[%clk 0:00:13.1]} 37... Qc8 {[%clk 0:00:40.7]} 38. Kh2 {[%clk 0:00:09.9]} 38...
Rc7 {[%clk 0:00:39]} 39. Qd1 {[%clk 0:00:04.6]} 39... Qe6 {[%clk 0:00:36.6]} 40.
c5 {[%clk 0:00:02.2]} 40... bxc5 {[%clk 0:00:36.7]} 41. bxc5 {[%clk 0:00:03.1]}
41... Rxc5 {[%clk 0:00:37.3]} 42. Rc2 {[%clk 0:00:03.8]} 42... Rxc2 {[%clk
0:00:28.2]} 43. Rxc2 {[%clk 0:00:03.9]} 43... Rg7 {[%clk 0:00:26.3]} 44. Qe1
{[%clk 0:00:03.6]} 44... Qf6 {[%clk 0:00:23.2]} 45. Rc6 {[%clk 0:00:03.5]} 45...
Qg5 {[%clk 0:00:16.4]} 46. Qe4+ {[%clk 0:00:03.7]} 46... Rg6 {[%clk 0:00:12.3]}
47. Qc2 {[%clk 0:00:02]} 47... Kh6 {[%clk 0:00:12.7]} 48. Rc8 {[%clk 0:00:01.9]}
48... Qg3+ {[%clk 0:00:12.5]} 49. Kh1 {[%clk 0:00:02.5]} 49... Qe1+ {[%clk
0:00:11.1]} 50. Kh2 {[%clk 0:00:03.1]} 50... Qg3+ {[%clk 0:00:09.9]} 51. Kh1
{[%clk 0:00:03.6]} 51... Qe1+ {[%clk 0:00:06.6]} 52. Kh2 {[%clk 0:00:03.6]}
52... Qg3+ {[%clk 0:00:06.4]} 1/2-1/2

[Event "Early-Titled-Tuesday-Blitz-March-26-2024"]
[Site "Chess.com"]
[Date "2024.03.26"]
[Round "10"]
[White "Shield12"]
[Black "stollenmonster"]
[Result "1-0"]
[WhiteElo "3003"]
[BlackElo "2891"]
[TimeControl "180+1"]
[EndTime "9:53:59 PDT"]
[Termination "Shield12 won by resignation"]

1. b3 {[%clk 0:03:00.9]} 1... Nf6 {[%clk 0:02:58.8]} 2. Bb2 {[%clk 0:03:01.8]}
2... e6 {[%clk 0:02:58.7]} 3. Nf3 {[%clk 0:03:02.7]} 3... Be7 {[%clk 0:02:59.1]}
4. g3 {[%clk 0:03:03.4]} 4... O-O {[%clk 0:02:59.8]} 5. Bg2 {[%clk 0:03:04.1]}
5... b6 {[%clk 0:03:00.1]} 6. O-O {[%clk 0:03:04.6]} 6... Bb7 {[%clk 0:03:00.7]}
7. c4 {[%clk 0:03:05.4]} 7... d5 {[%clk 0:03:01.1]} 8. cxd5 {[%clk 0:03:06]}
8... Bxd5 {[%clk 0:03:00.9]} 9. Nc3 {[%clk 0:03:05.5]} 9... Bb7 {[%clk
0:03:01.2]} 10. d4 {[%clk 0:03:04.9]} 10... c5 {[%clk 0:03:01.3]} 11. dxc5
{[%clk 0:03:02.1]} 11... Bxc5 {[%clk 0:03:02.2]} 12. Qc2 {[%clk 0:02:58.4]}
12... Nc6 {[%clk 0:03:01.7]} 13. Rfd1 {[%clk 0:02:57]} 13... Qe7 {[%clk
0:03:02]} 14. a3 {[%clk 0:02:57.6]} 14... a5 {[%clk 0:02:53.3]} 15. Nb5 {[%clk
0:02:42.5]} 15... Rac8 {[%clk 0:02:48.9]} 16. Ng5 {[%clk 0:02:37.8]} 16... Ne5
{[%clk 0:02:33.4]} 17. Qd2 {[%clk 0:02:30]} 17... Bxg2 {[%clk 0:02:23]} 18. Kxg2
{[%clk 0:02:30.9]} 18... Rfd8 {[%clk 0:02:21.6]} 19. Qf4 {[%clk 0:02:28.3]}
19... Qb7+ {[%clk 0:02:17.3]} 20. Nf3 {[%clk 0:02:18.3]} 20... Ng6 {[%clk
0:02:12.1]} 21. Qa4 {[%clk 0:02:04.5]} 21... Ne4 {[%clk 0:01:59.7]} 22. Bd4
{[%clk 0:01:57.1]} 22... Bxd4 {[%clk 0:01:53.4]} 23. Rxd4 {[%clk 0:01:56.8]}
23... Nc5 {[%clk 0:01:36.5]} 24. Rxd8+ {[%clk 0:01:55.6]} 24... Rxd8 {[%clk
0:01:37.1]} 25. Qc4 {[%clk 0:01:56.5]} 25... Ne5 {[%clk 0:01:13.1]} 26. Qh4
{[%clk 0:01:56.6]} 26... Rd2 {[%clk 0:01:06.5]} 27. b4 {[%clk 0:01:35.3]} 27...
Nb3 {[%clk 0:00:45.4]} 28. Rb1 {[%clk 0:01:18.9]} 28... a4 {[%clk 0:00:45.7]}
29. Nc3 {[%clk 0:01:08.5]} 29... h6 {[%clk 0:00:32]} 30. Qf4 {[%clk 0:00:56.3]}
30... f6 {[%clk 0:00:15.1]} 31. Ne4 {[%clk 0:00:51.9]} 31... Rxe2 {[%clk
0:00:13.1]} 32. Nc3 {[%clk 0:00:43.7]} 32... Rc2 {[%clk 0:00:11.1]} 33. Ne4
{[%clk 0:00:34]} 33... Nxf3 {[%clk 0:00:03.4]} 34. Qxf3 {[%clk 0:00:33.8]} 34...
Qd5 {[%clk 0:00:02.3]} 35. Rd1 {[%clk 0:00:26.6]} 35... Nd4 {[%clk 0:00:02.6]}
36. Nxf6+ {[%clk 0:00:23.5]} 36... gxf6 {[%clk 0:00:02.4]} 37. Qxd5 {[%clk
0:00:24.4]} 37... exd5 {[%clk 0:00:03]} 38. Rxd4 {[%clk 0:00:25.3]} 38... Rc3
{[%clk 0:00:03.3]} 39. Rxd5 {[%clk 0:00:25.3]} 39... Rxa3 {[%clk 0:00:03.8]} 40.
Rb5 {[%clk 0:00:21.3]} 40... Ra1 {[%clk 0:00:03.6]} 41. Rxb6 {[%clk 0:00:22.2]}
41... Kf7 {[%clk 0:00:03.8]} 42. Ra6 {[%clk 0:00:19]} 42... a3 {[%clk
0:00:04.4]} 43. Kf3 {[%clk 0:00:19.2]} 43... h5 {[%clk 0:00:04.2]} 44. Ra5
{[%clk 0:00:17.7]} 44... a2 {[%clk 0:00:04.3]} 45. Kg2 {[%clk 0:00:16.4]} 45...
Kg6 {[%clk 0:00:04.2]} 46. h3 {[%clk 0:00:16.3]} 46... f5 {[%clk 0:00:03.8]} 47.
Ra6+ {[%clk 0:00:15.7]} 47... Kg7 {[%clk 0:00:04.2]} 48. Kf3 {[%clk 0:00:15.8]}
48... Kf7 {[%clk 0:00:04]} 49. Kf4 {[%clk 0:00:15.3]} 49... Ke7 {[%clk
0:00:04.4]} 50. Kxf5 {[%clk 0:00:15.1]} 50... Kd7 {[%clk 0:00:05.3]} 51. f4
{[%clk 0:00:14.8]} 51... Kc7 {[%clk 0:00:06.2]} 52. g4 {[%clk 0:00:14.5]} 52...
Kb7 {[%clk 0:00:07.1]} 53. Ra5 {[%clk 0:00:14.3]} 53... h4 {[%clk 0:00:07.6]}
54. g5 {[%clk 0:00:14.6]} 54... Kb6 {[%clk 0:00:07.9]} 55. g6 {[%clk 0:00:14.5]}
1-0